Workbook

Sheet Лист1
A1: Школа | C1: МБОУ "Нижнеуратьмнская СОШ НМР РТ | F1: Согласование: | G1: должность | H1: Директор
A2: Типовое примерное меню приготавливаемых блюд | G2: фамилия | H2: Хайруллина Р.Р.
A3: Возрастная категория | E3: 7-11 лет | G3: дата | H3: 2 | I3: 9 | J3: 2024
H4: день | I4: месяц | J4: год
A5: Неделя | B5: День недели | C5: Прием пищи | D5: Раздел меню | E5: Блюда | F5: Вес блюда, г | G5: Белки | H5: Жиры | I5: Углеводы | J5: Калорийность | K5: № рецептуры | L5: Цена
A6: 1 | B6: 1 | C6: Завтрак | D6: доп.гарнир | E6: Яйцо вареное | F6: 40 | G6: 5.08 | H6: 4.60 | I6: 0.28 | J6: 63.00
D7: гор.блюдо | E7: Котлеты Домашние с гречкой | F7: 90 | G7: 6.40 | H7: 11.14 | I7: 35.71 | J7: 248.00
D8: гарнир | E8: Макаронные изделия (рожки) отварные с маслом сливочным | F8: 153 | G8: 5.68 | H8: 2.88 | I8: 31.96 | J8: 176.10
D9: напиток | E9: Чай с молоком и сахаром | F9: 200 | G9: 1.52 | H9: 1.35 | I9: 8.92 | J9: 53.07
D10: хлеб черн. | E10: Хлеб пшеничный | F10: 20 | G10: 1.52 | H10: 0.16 | I10: 9.84 | J10: 47.00
D13: итого | F13: =SUM(F6:F12) -> 503 | G13: =SUM(G6:G12) -> 20.20 | H13: =SUM(H6:H12) -> 20.13 | I13: =SUM(I6:I12) -> 86.71 | J13: =SUM(J6:J12) -> 587.17 | L13: 80.66
A14: 1 | B14: 2 | C14: Завтрак | D14: фрукты | E14: яблоко | F14: 100 | G14: 0.40 | H14: 0.40 | I14: 9.80 | J14: 47.00
D15: гор. блюдо | E15: Запеканка картофельная с птицей | F15: 180 | G15: 13.58 | H15: 16.26 | I15: 52.09 | J15: 404.10
D16: напиток | E16: Кофейный напиток с молоком | F16: 200 | G16: 3.17 | H16: 2.68 | I16: 9.98 | J16: 60.10
D17: хлеб бел. | E17: Хлеб пшеничный | F17: 20 | G17: 1.52 | H17: 0.16 | I17: 9.84 | J17: 47.00
D20: итого | F20: =SUM(F14:F19) -> 500 | G20: =SUM(G14:G19) -> 18.67 | H20: =SUM(H14:H19) -> 19.50 | I20: =SUM(I14:I19) -> 81.71 | J20: =SUM(J14:J19) -> 558.20 | L20: 80.66
A21: 1 | B21: 3 | C21: Завтрак | D21: хлеб бел. | E21: бутерброд с повидлом | F21: 60 | G21: 2.37 | H21: 0.87 | I21: 34.92 | J21: 153.6
D22: гор.блюдо | E22: Плов из куриной грудки | F22: 200 | G22: 14.42 | H22: 17.96 | I22: 26.93 | J22: 330.5
D23: напиток | E23: Чай с сахаром и лимоном | F23: 200 | G23: 0.13 | H23: 0.02 | I23: 8.2 | J23: 34.02
D24: хлеб бел. | E24: Хлеб пшеничный | F24: 20 | G24: 1.52 | H24: 0.16 | I24: 9.84 | J24: 47
D25: хлеб черн. | E25: Хлеб ржаной | F25: 20 | G25: 1.32 | H25: 0.24 | I25: 7.92 | J25: 39.6
D28: итого | F28: =SUM(F21:F27) -> 500 | G28: =SUM(G21:G27) -> 19.76 | H28: =SUM(H21:H27) -> 19.25 | I28: =SUM(I21:I27) -> 87.81 | J28: =SUM(J21:J27) -> 604.72 | L28: 80.66
A29: 1 | B29: 4 | C29: Завтрак | D29: хлеб бел. | E29: Хлеб пшеничный с сыром | F29: 30 | G29: 4.15 | H29: 2.82 | I29: 11.88 | J29: =34.33+J33 -> 93.73
D30: гор.блюдо | E30: Котлеты "Нежные" из куриных грудок | F30: 90 | G30: 6.6 | H30: 12.93 | I30: 13.79 | J30: 169.8
D31: гарнир | E31: Каша пшеничная (вязкая) с маслом сливочным | F31: 153 | G31: 6.7 | H31: 4.38 | I31: 35.99 | J31: 227
D32: напиток | E32: Напиток из урюка | F32: 200 | G32: 0.75 | H32: 0.06 | I32: 15.95 | J32: 68.52
D33: хлеб черн. | E33: Хлеб ржаной | F33: 30 | G33: 1.98 | H33: 0.36 | I33: 11.88 | J33: 59.4
D36: итого | F36: =SUM(F29:F35) -> 503 | G36: =SUM(G29:G35) -> 20.18 | H36: =SUM(H29:H35) -> 20.55 | I36: =SUM(I29:I35) -> 89.49 | J36: =SUM(J29:J35) -> 618.45 | L36: 80.66
A37: 1 | B37: 5 | C37: Завтрак | D37: фрукты | E37: Яблоки | F37: 100 | G37: 0.4 | H37: 0.4 | I37: 9.8 | J37: 47
D38: гор.блюдо | E38: Сырники из творога со сгущенным молоком | F38: 150 | G38: 15.55 | H38: 18.35 | I38: 40.33 | J38: 398.93
D39: гор.напиток | E39: Чай с сахаром | F39: 200 | G39: 0.07 | H39: 0.02 | I39: 8 | J39: 32
D40: хлеб бел. | E40: Хлеб пшеничный | F40: 20 | G40: 1.52 | H40: 0.16 | I40: 9.84 | J40: 47
D41: хлеб черн. | E41: Хлеб ржаной | F41: 30 | G41: 1.98 | H41: 0.36 | I41: 11.88 | J41: 59.4
D44: итого | F44: =F37+F38+F39+F40+F41 -> 500 | G44: =G37+G38+G39+G40+G41 -> 19.52 | H44: 19.29 | I44: 79.85 | J44: 584.33 | L44: 80.66
A45: 1 | B45: 6 | C45: Завтрак | D45: сладкое | E45: Печенье | F45: 20 | G45: 1.48 | H45: 1.88 | I45: 5.42 | J45: 62.14
D46: гор.блюдо | E46: Курица запеченная | F46: 90 | G46: 9.55 | H46: 9.49 | I46: 0.00 | J46: 200.66
D47: гарнир | E47: Каша гречневая (вязкая) с маслом сливочным | F47: 153 | G47: 4.60 | H47: 7.19 | I47: 39.56 | J47: 165.30
D48: напиток | E48: Чай с сахаром и лимоном | F48: 200 | G48: 0.13 | H48: 0.02 | I48: 8.20 | J48: 34.02
D49: хлеб бел. | E49: Хлеб пшеничный | F49: 30 | G49: 2.28 | H49: 0.24 | I49: 14.76 | J49: 70.50
D50: хлеб черн. | E50: Хлеб ржаной | F50: 30 | G50: 1.98 | H50: 0.36 | I50: 11.88 | J50: 59.40
D52: итого | F52: =SUM(F45:F51) -> 523 | G52: =SUM(G45:G51) -> 20.02 | H52: =SUM(H45:H51) -> 19.18 | I52: 79.82 | J52: 592.02 | L52: 80.66
A53: 2 | B53: 7 | C53: Завтрак | D53: гор.блюдо | E53: Биточки рыбные | F53: 50 | G53: 6.27 | H53: 7.86 | I53: 14.83 | J53: 155
D54: гарнир | E54: Макаронные изделия (рожки) отварные с маслом сливочным | F54: 90 | G54: 8.58 | H54: 8.98 | I54: 16.21 | J54: 170.2
D55: напиток | E55: Чай с сахаром, с яблоком | F55: 153 | G55: 3.68 | H55: 2.88 | I55: 31.96 | J55: 176.1
D56: хлеб бел. | E56: Бутерброд с маслом сливочным | F56: 200 | G56: 0.11 | H56: 0.06 | I56: 8.97 | J56: 36.68
D57: хлеб черн. | E57: Хлеб ржаной | F57: 20 | G57: 1.52 | H57: 0.16 | I57: 9.84 | J57: 47
D60: итого | F60: =SUM(F53:F59) -> 513 | G60: =SUM(G53:G59) -> 20.16 | H60: =SUM(H53:H59) -> 19.94 | I60: =SUM(I53:I59) -> 81.81 | J60: =SUM(J53:J59) -> 584.98 | L60: 80.66
A61: 2 | B61: 8 | C61: Завтрак | D61: фрукты | E61: яблоко | F61: 200 | G61: 0.40 | H61: 0.40 | I61: 9.80 | J61: 47.00
D62: гор.блюдо | E62: Жаркое из птицы (куриных грудок) | F62: 100 | G62: 17.01 | H62: 18.47 | I62: 52.76 | J62: 473.54
D63: напиток | E63: Чай с сахаром | F63: 200 | G63: 0.07 | H63: 0.02 | I63: 8.00 | J63: 32.00
D64: хлеб бел. | E64: Хлеб пшеничный | F64: 20 | G64: 1.52 | H64: 0.16 | I64: 9.84 | J64: 47.00
D67: итого | F67: =SUM(F61:F66) -> 520 | G67: =SUM(G61:G66) -> 19.00 | H67: 19.05 | I67: 80.40 | J67: 599.54 | L67: 80.66
A68: 2 | B68: 9 | C68: Завтрак | D68: гор.блюдо | E68: Котлеты Здоровье из куриных грудок | F68: 90 | G68: 11.2 | H68: 10.96 | I68: 24.82 | J68: 229.63
D69: гарнир | E69: Каша гречневая вязкая с маслом сливочным | F69: 153 | G69: 4.6 | H69: 7.19 | I69: 20.56 | J69: 165.3
D70: напиток | E70: Чай с сахаром и лимоном | F70: 200 | G70: 0.13 | H70: 0.02 | I70: 8.2 | J70: 34.02
D71: хлеб бел. | E71: Хлеб пшеничный | F71: 30 | G71: 2.28 | H71: 0.24 | I71: 14.76 | J71: 70.5
D72: хлеб черн. | E72: Хлеб ржаной | F72: 30 | G72: 1.98 | H72: 0.36 | I72: 11.88 | J72: 59.4
D75: итого | F75: =SUM(F68:F74) -> 503 | G75: =SUM(G68:G74) -> 20.19 | H75: =SUM(H68:H74) -> 18.77 | I75: =SUM(I68:I74) -> 80.22 | J75: =SUM(J68:J74) -> 558.85 | L75: 80.66
A76: 2 | B76: 10 | C76: Завтрак | D76: сладкое | E76: Печенье | F76: 20 | G76: 1.48 | H76: 1.88 | I76: 5.42 | J76: 62.14
D77: гор.блюдо | E77: Тефтели мясные с геркулесом | F77: 90 | G77: 11.4 | H77: 9.91 | I77: 24.86 | J77: 179.59
D78: гарнир | E78: Пюре картофельное с маслом сливочным | F78: 153 | G78: 3.09 | H78: 6.98 | I78: 12.48 | J78: 157.55
D79: напиток | E79: Сок фруктовый ( нектар плодовый) | F79: 200 | G79: 1 | H79: 0 | I79: 20.2 | J79: 84.8
D80: хлеб бел. | E80: Хлеб пшеничный | F80: 20 | G80: 1.52 | H80: 0.16 | I80: 9.84 | J80: 47
D81: хлеб черн. | E81: Хлеб ржаной | F81: 25 | G81: 1.63 | H81: 0.03 | I81: 9.9 | J81: 33
D83: итого | F83: =SUM(F76:F82) -> 508 | G83: =SUM(G76:G82) -> 20.12 | H83: =SUM(H76:H82) -> 18.96 | I83: =SUM(I76:I82) -> 82.7 | J83: =SUM(J76:J82) -> 564.08 | L83: 80.66
A84: 2 | B84: 11 | C84: Завтрак | D84: фрукты | E84: Яблоко | F84: 100 | G84: 0.4 | H84: 0.4 | I84: 9.8 | J84: 47
D85: гор.блюдо | E85: Сосиска с томатным соусом , с рисом отварным | F85: 250 | G85: 12.62 | H85: 15.31 | I85: 59.57 | J85: 426.7
D86: напиток | E86: Какао с молоком | F86: 200 | G86: 4.08 | H86: 3.54 | I86: 2.61 | J86: 58.6
D87: хлеб бел. | E87: Хлеб пшеничный | F87: 20 | G87: 1.52 | H87: 0.16 | I87: 9.84 | J87: 47
D90: итого | F90: =SUM(F84:F88) -> 570 | G90: =SUM(G84:G88) -> 18.62 | H90: 19.41 | I90: 81.82 | J90: 579.3 | L90: =SUM(L83:L88) -> 80.66
A91: 2 | B91: 12 | C91: Завтрак | D91: гор.блюдо | E91: Котлета рубленная из куриной грудки | F91: 90 | G91: 9.7 | H91: 11.63 | I91: 14.99 | J91: 209.8
D92: гарнир | E92: Пюре гороховое с маслом сливочным | F92: 153 | G92: 6.09 | H92: 8.26 | I92: 30.06 | J92: 244.95
D93: напиток | E93: Чай с сахаром | F93: 200 | G93: 0.07 | H93: 0.02 | I93: 8 | J93: 32
D94: хлеб бел. | E94: Хлеб пшеничный | F94: 30 | G94: 2.28 | H94: 0.24 | I94: 14.76 | J94: 70.5
D95: хлеб черн. | E95: Хлеб ржаной | F95: 30 | G95: 1.98 | H95: 0.36 | I95: 11.88 | J95: 59.4
D97: итого | F97: =SUM(F91:F95) -> 503 | G97: =SUM(G91:G95) -> 20.12 | H97: 20.51 | I97: 79.69 | J97: 616.65 | L97: =SUM(L90:L95) -> 80.66
C98: Среднее значение за период: | F98: =(F13+F20+F28+F36+F44+F52+F60+F67+F75+F83+F90+F97)/12 -> 512 | G98: 20 | H98: 20 | I98: 83 | J98: 587 | K98: 0
